[Event "*** Titled Tuesday Blitz"]
[Site "Chess.com"]
[Date "2018.01.02"]
[Round "1"]
[White "MITerryble"]
[Black "ramses135"]
[Result "1-0"]
[WhiteElo "2659"]
[BlackElo "2358"]
[TimeControl "180+2"]
[EndTime "13:07:08 PST"]
[Termination "MITerryble won by resignation"]

1. d4 {[%clk 0:02:51.9]} 1... f5 {[%clk 0:03:00.4]} 2. Bg5 {[%clk 0:02:51]} 2...
g6 {[%clk 0:02:59.6]} 3. e3 {[%clk 0:02:50.9]} 3... Bg7 {[%clk 0:03:00.6]} 4. c4
{[%clk 0:02:47.2]} 4... Nf6 {[%clk 0:03:01.2]} 5. Nc3 {[%clk 0:02:48.1]} 5...
O-O {[%clk 0:03:01.6]} 6. h4 {[%clk 0:02:45.8]} 6... d6 {[%clk 0:02:56.6]} 7.
Nf3 {[%clk 0:02:43.8]} 7... Qe8 {[%clk 0:02:54.7]} 8. d5 {[%clk 0:02:40.7]} 8...
e5 {[%clk 0:02:43.7]} 9. dxe6 {[%clk 0:02:40.8]} 9... Bxe6 {[%clk 0:02:44.3]}
10. Nd4 {[%clk 0:02:38.5]} 10... Bf7 {[%clk 0:02:34.1]} 11. Be2 {[%clk
0:02:39.7]} 11... Nc6 {[%clk 0:02:35]} 12. Ndb5 {[%clk 0:02:27.9]} 12... Rc8
{[%clk 0:02:21.5]} 13. Nd5 {[%clk 0:01:53.2]} 13... Nxd5 {[%clk 0:01:33.2]} 14.
cxd5 {[%clk 0:01:52.9]} 14... Ne7 {[%clk 0:01:34.7]} 15. Nc3 {[%clk 0:01:45.3]}
15... c6 {[%clk 0:01:03.7]} 16. dxc6 {[%clk 0:01:41]} 16... Nxc6 {[%clk
0:00:46.8]} 17. O-O {[%clk 0:01:38.7]} 17... Qe6 {[%clk 0:00:38.9]} 18. Bf3
{[%clk 0:01:19.2]} 18... h6 {[%clk 0:00:38.6]} 19. Bf4 {[%clk 0:01:16.2]} 19...
Rfd8 {[%clk 0:00:38.8]} 20. Rc1 {[%clk 0:01:14.5]} 20... Qe7 {[%clk 0:00:35.2]}
21. Bd5 {[%clk 0:01:01.7]} 21... Kh7 {[%clk 0:00:25.8]} 22. Bg3 {[%clk
0:00:57.5]} 22... Bf6 {[%clk 0:00:24.8]} 23. h5 {[%clk 0:00:57.5]} 23... g5
{[%clk 0:00:23.6]} 24. Qd3 {[%clk 0:00:58.4]} 24... Bxd5 {[%clk 0:00:11.3]} 25.
Qxf5+ {[%clk 0:00:56.8]} 25... Kg7 {[%clk 0:00:12.5]} 26. Qg6+ {[%clk
0:00:55.5]} 26... Kf8 {[%clk 0:00:13.2]} 27. Nxd5 {[%clk 0:00:57.4]} 1-0

[Event "*** Titled Tuesday Blitz"]
[Site "Chess.com"]
[Date "2018.01.02"]
[Round "1"]
[White "SergeiAza"]
[Black "Aariow"]
[Result "1-0"]
[WhiteElo "2675"]
[BlackElo "2378"]
[TimeControl "180+2"]
[EndTime "13:07:19 PST"]
[Termination "SergeiAza won by resignation"]

1. e4 {[%clk 0:03:01.9]} 1... e5 {[%clk 0:02:59.8]} 2. Nf3 {[%clk 0:03:02.9]}
2... Nf6 {[%clk 0:03:00.9]} 3. Nxe5 {[%clk 0:03:00.4]} 3... d6 {[%clk
0:03:00.8]} 4. Nf3 {[%clk 0:03:01.5]} 4... Nxe4 {[%clk 0:03:01.9]} 5. Nc3 {[%clk
0:03:03.1]} 5... Nxc3 {[%clk 0:03:03]} 6. dxc3 {[%clk 0:03:04.2]} 6... Be7
{[%clk 0:03:04.1]} 7. Be3 {[%clk 0:03:05.1]} 7... Nc6 {[%clk 0:03:02.5]} 8. Qd2
{[%clk 0:03:06.5]} 8... Be6 {[%clk 0:02:48.9]} 9. O-O-O {[%clk 0:03:06.8]} 9...
Bxa2 {[%clk 0:02:49.8]} 10. b3 {[%clk 0:02:52.7]} 10... a5 {[%clk 0:02:51.2]}
11. Kb2 {[%clk 0:02:50.2]} 11... a4 {[%clk 0:02:52.4]} 12. Kxa2 {[%clk
0:02:12.8]} 12... axb3+ {[%clk 0:02:52.1]} 13. Kxb3 {[%clk 0:02:12.6]} 13... Ra5
{[%clk 0:02:53.7]} 14. Kb2 {[%clk 0:01:46]} 14... Qa8 {[%clk 0:02:54.5]} 15. Bc4
{[%clk 0:01:45.9]} 15... d5 {[%clk 0:02:52.9]} 16. Bxd5 {[%clk 0:01:17.4]} 16...
Ba3+ {[%clk 0:01:24.2]} 17. Kb1 {[%clk 0:01:18.3]} 17... Bd6 {[%clk 0:01:22.9]}
18. Bc5 {[%clk 0:00:49.5]} 18... Rxc5 {[%clk 0:00:58.6]} 19. Rhe1+ {[%clk
0:00:50.3]} 19... Kf8 {[%clk 0:00:59.5]} 20. Bxc6 {[%clk 0:00:42.1]} 20... bxc6
{[%clk 0:00:42.6]} 21. Nd4 {[%clk 0:00:43.1]} 21... g6 {[%clk 0:00:18]} 22. Nb3
{[%clk 0:00:43.8]} 22... Rb5 {[%clk 0:00:18]} 23. Qd4 {[%clk 0:00:41.4]} 23...
Rg8 {[%clk 0:00:18.4]} 24. Re2 {[%clk 0:00:34.2]} 24... Qa3 {[%clk 0:00:19.2]}
25. Rde1 {[%clk 0:00:33.4]} 25... Rxb3+ {[%clk 0:00:18.4]} 26. cxb3 {[%clk
0:00:34.6]} 26... Qxb3+ {[%clk 0:00:20.3]} 27. Rb2 {[%clk 0:00:35.6]} 1-0

[Event "*** Titled Tuesday Blitz"]
[Site "Chess.com"]
[Date "2018.01.02"]
[Round "1"]
[White "Mr_Penings"]
[Black "nicegg"]
[Result "1-0"]
[WhiteElo "2437"]
[BlackElo "1999"]
[TimeControl "180+2"]
[EndTime "13:07:19 PST"]
[Termination "Mr_Penings won by resignation"]

1. c4 {[%clk 0:02:58.4]} 1... e5 {[%clk 0:03:00.7]} 2. Nc3 {[%clk 0:02:58.2]}
2... d6 {[%clk 0:03:01.9]} 3. g3 {[%clk 0:02:58.1]} 3... f5 {[%clk 0:03:01.3]}
4. Bg2 {[%clk 0:02:58.6]} 4... c6 {[%clk 0:03:02.5]} 5. d4 {[%clk 0:02:59.7]}
5... Nd7 {[%clk 0:03:02.5]} 6. Nf3 {[%clk 0:02:57.2]} 6... h6 {[%clk 0:02:59.8]}
7. Nh4 {[%clk 0:02:55]} 7... Qf6 {[%clk 0:02:55.9]} 8. d5 {[%clk 0:02:43.2]}
8... g5 {[%clk 0:02:51.1]} 9. dxc6 {[%clk 0:02:35.2]} 9... bxc6 {[%clk
0:02:45.8]} 10. Bxc6 {[%clk 0:02:34.5]} 10... Rb8 {[%clk 0:02:46.3]} 11. Nd5
{[%clk 0:02:29]} 11... Qf7 {[%clk 0:02:31.7]} 12. Nf3 {[%clk 0:02:09.7]} 12...
Ne7 {[%clk 0:02:27.2]} 13. Nxe7 {[%clk 0:01:36.6]} 13... Bxe7 {[%clk 0:02:24]}
14. Bd5 {[%clk 0:01:37.6]} 14... Qf6 {[%clk 0:02:21.5]} 15. O-O {[%clk 0:01:23]}
15... Nb6 {[%clk 0:02:11.2]} 16. Bc6+ {[%clk 0:01:18.8]} 16... Kf8 {[%clk
0:02:10.5]} 17. b3 {[%clk 0:01:08.7]} 17... e4 {[%clk 0:02:05.2]} 18. Nd4 {[%clk
0:01:09.5]} 18... h5 {[%clk 0:01:54.6]} 19. f4 {[%clk 0:00:43.6]} 19... exf3
{[%clk 0:01:37.2]} 20. Rxf3 {[%clk 0:00:34.3]} 20... h4 {[%clk 0:01:29.1]} 21.
Qd3 {[%clk 0:00:28.2]} 21... g4 {[%clk 0:01:22.1]} 22. Rf1 {[%clk 0:00:24.1]}
22... hxg3 {[%clk 0:01:23]} 23. hxg3 {[%clk 0:00:24.2]} 23... Rh3 {[%clk
0:01:03.9]} 24. Nxf5 {[%clk 0:00:24]} 24... Qxa1 {[%clk 0:00:52.4]} 25. Bh6+
{[%clk 0:00:24.2]} 25... Rxh6 {[%clk 0:00:48.2]} 26. Rxa1 {[%clk 0:00:24.8]}
26... Rf6 {[%clk 0:00:41.2]} 27. Rf1 {[%clk 0:00:23.4]} 27... d5 {[%clk
0:00:38.8]} 28. Nxe7 {[%clk 0:00:17.7]} 28... Kxe7 {[%clk 0:00:38.1]} 29. Qh7+
{[%clk 0:00:14.2]} 1-0

[Event "*** Titled Tuesday Blitz"]
[Site "Chess.com"]
[Date "2018.01.02"]
[Round "1"]
[White "MatthewG-p4p"]
[Black "EmreDedebas"]
[Result "1-0"]
[WhiteElo "2636"]
[BlackElo "2348"]
[TimeControl "180+2"]
[EndTime "13:07:20 PST"]
[Termination "MatthewG-p4p won by resignation"]

1. c4 {[%clk 0:02:55.3]} 1... e5 {[%clk 0:03:00.4]} 2. Nc3 {[%clk 0:02:56.4]}
2... Nc6 {[%clk 0:03:01.7]} 3. g3 {[%clk 0:02:57.6]} 3... Bc5 {[%clk 0:03:03]}
4. Bg2 {[%clk 0:02:59.1]} 4... d6 {[%clk 0:03:00.7]} 5. Nf3 {[%clk 0:03:00.2]}
5... a6 {[%clk 0:03:01.4]} 6. O-O {[%clk 0:03:00.7]} 6... Nge7 {[%clk
0:02:52.2]} 7. d3 {[%clk 0:03:01.8]} 7... Ba7 {[%clk 0:02:48.6]} 8. Rb1 {[%clk
0:02:58.6]} 8... O-O {[%clk 0:02:46.3]} 9. b4 {[%clk 0:02:59.6]} 9... Bf5 {[%clk
0:02:44.9]} 10. h3 {[%clk 0:02:51.9]} 10... Qd7 {[%clk 0:02:41.8]} 11. Kh2
{[%clk 0:02:51.4]} 11... Rab8 {[%clk 0:02:39.4]} 12. a4 {[%clk 0:02:51.2]} 12...
Nd4 {[%clk 0:02:35.1]} 13. Ne1 {[%clk 0:02:47.5]} 13... Ne6 {[%clk 0:02:28.9]}
14. e3 {[%clk 0:02:47.1]} 14... Bg6 {[%clk 0:02:28.6]} 15. b5 {[%clk 0:02:43.6]}
15... axb5 {[%clk 0:02:28.9]} 16. axb5 {[%clk 0:02:44]} 16... f5 {[%clk
0:02:30]} 17. f4 {[%clk 0:02:43.6]} 17... Bb6 {[%clk 0:02:24.2]} 18. Na4 {[%clk
0:02:41.9]} 18... Ba5 {[%clk 0:02:22.4]} 19. Nf3 {[%clk 0:02:38.5]} 19... e4
{[%clk 0:02:19]} 20. dxe4 {[%clk 0:02:39.4]} 20... fxe4 {[%clk 0:02:20.9]} 21.
Nd4 {[%clk 0:02:38.1]} 21... Rbe8 {[%clk 0:01:30.9]} 22. Nb3 {[%clk 0:02:29.9]}
22... Bb4 {[%clk 0:01:29.3]} 23. Nd4 {[%clk 0:02:24.7]} 23... Ba5 {[%clk
0:01:27.2]} 24. g4 {[%clk 0:02:26.1]} 24... Bf7 {[%clk 0:01:03.2]} 25. Bb2
{[%clk 0:02:24.5]} 25... Nc8 {[%clk 0:00:42.8]} 26. Nf5 {[%clk 0:02:20.6]} 26...
Nb6 {[%clk 0:00:40.3]} 27. Rc1 {[%clk 0:02:02.3]} 27... Nxa4 {[%clk 0:00:38]}
28. Qxa4 {[%clk 0:02:03.3]} 28... Bb6 {[%clk 0:00:39.9]} 29. Qc2 {[%clk
0:01:59.3]} 29... Bg6 {[%clk 0:00:39.8]} 30. Bxe4 {[%clk 0:01:57.2]} 30... Nc5
{[%clk 0:00:37.8]} 31. Bd5+ {[%clk 0:01:56.7]} 31... Kh8 {[%clk 0:00:32.2]} 32.
Bd4 {[%clk 0:01:42.2]} 32... Bxf5 {[%clk 0:00:29.3]} 33. gxf5 {[%clk 0:01:43.5]}
33... Qxf5 {[%clk 0:00:31.2]} 34. Qxf5 {[%clk 0:01:43.7]} 34... Rxf5 {[%clk
0:00:33.1]} 35. Rg1 {[%clk 0:01:44.7]} 35... Re7 {[%clk 0:00:34.6]} 36. Ra1
{[%clk 0:01:45.2]} 36... h5 {[%clk 0:00:29.7]} 37. Ra8+ {[%clk 0:01:45]} 37...
Kh7 {[%clk 0:00:31.2]} 38. Bg8+ {[%clk 0:01:45.4]} 38... Kh6 {[%clk 0:00:31.9]}
39. Be6 {[%clk 0:01:42.7]} 1-0

[Event "*** Titled Tuesday Blitz"]
[Site "Chess.com"]
[Date "2018.01.02"]
[Round "1"]
[White "geeeeri"]
[Black "Diwi89"]
[Result "0-1"]
[WhiteElo "2398"]
[BlackElo "2730"]
[TimeControl "180+2"]
[EndTime "13:07:22 PST"]
[Termination "Diwi89 won by resignation"]

1. e4 {[%clk 0:03:01.9]} 1... c5 {[%clk 0:02:51.2]} 2. Nf3 {[%clk 0:03:02.6]}
2... Nc6 {[%clk 0:02:52.4]} 3. d3 {[%clk 0:03:03.7]} 3... e5 {[%clk 0:02:51.8]}
4. Nbd2 {[%clk 0:03:05.6]} 4... Nge7 {[%clk 0:02:52]} 5. g3 {[%clk 0:03:07.5]}
5... g6 {[%clk 0:02:53]} 6. Bg2 {[%clk 0:03:09.4]} 6... Bg7 {[%clk 0:02:54.4]}
7. O-O {[%clk 0:03:11.3]} 7... O-O {[%clk 0:02:55.5]} 8. a4 {[%clk 0:03:09.1]}
8... d5 {[%clk 0:02:55.6]} 9. exd5 {[%clk 0:03:07.8]} 9... Nxd5 {[%clk
0:02:57.5]} 10. h3 {[%clk 0:03:09.5]} 10... Re8 {[%clk 0:02:57.8]} 11. Nc4
{[%clk 0:03:10.3]} 11... h6 {[%clk 0:02:59]} 12. Re1 {[%clk 0:03:11.5]} 12... f6
{[%clk 0:02:56.9]} 13. Ne3 {[%clk 0:03:07.8]} 13... Be6 {[%clk 0:02:57.4]} 14.
Kh2 {[%clk 0:03:04.6]} 14... Bf7 {[%clk 0:02:56.5]} 15. Ng4 {[%clk 0:03:00.7]}
15... Kh7 {[%clk 0:02:53.7]} 16. Bd2 {[%clk 0:02:59.1]} 16... h5 {[%clk
0:02:52.4]} 17. Ne3 {[%clk 0:03:00.1]} 17... Qd7 {[%clk 0:02:53.9]} 18. h4
{[%clk 0:02:56.7]} 18... Rad8 {[%clk 0:02:54.1]} 19. Bh3 {[%clk 0:02:57.1]}
19... Qc7 {[%clk 0:02:55.3]} 20. Nxd5 {[%clk 0:02:50.9]} 20... Bxd5 {[%clk
0:02:55.8]} 21. Bc3 {[%clk 0:02:50]} 21... Nd4 {[%clk 0:02:54.2]} 22. Bg2 {[%clk
0:02:38.1]} 22... Be6 {[%clk 0:02:51.7]} 23. Nd2 {[%clk 0:02:25.5]} 23... Bg4
{[%clk 0:02:51.6]} 24. f3 {[%clk 0:02:13.7]} 24... Bf5 {[%clk 0:02:50.7]} 25.
Bxd4 {[%clk 0:02:11.9]} 25... cxd4 {[%clk 0:02:47.6]} 26. Nc4 {[%clk 0:02:11.6]}
26... Bh6 {[%clk 0:02:48.2]} 27. a5 {[%clk 0:02:02.1]} 27... Be6 {[%clk
0:02:43.6]} 28. b3 {[%clk 0:02:02.3]} 28... Bd5 {[%clk 0:02:44.7]} 29. Qe2
{[%clk 0:02:02.1]} 29... Bg7 {[%clk 0:02:44.9]} 30. Bh3 {[%clk 0:02:01.7]} 30...
f5 {[%clk 0:02:45.9]} 31. Qf2 {[%clk 0:02:01.3]} 31... Re7 {[%clk 0:02:46.3]}
32. Re2 {[%clk 0:02:01.8]} 32... Rde8 {[%clk 0:02:47.3]} 33. Bg2 {[%clk
0:02:00.8]} 33... Bf6 {[%clk 0:02:46.9]} 34. Kg1 {[%clk 0:01:56.9]} 34... Kg7
{[%clk 0:02:45.6]} 35. Bh3 {[%clk 0:01:50.6]} 35... Qc5 {[%clk 0:02:24]} 36. c3
{[%clk 0:01:18.4]} 36... Qc6 {[%clk 0:01:53.7]} 37. cxd4 {[%clk 0:00:54]} 37...
Bxf3 {[%clk 0:01:48.5]} 38. Re3 {[%clk 0:00:55.3]} 38... e4 {[%clk 0:01:49.3]}
39. dxe4 {[%clk 0:00:29.3]} 39... Bxd4 {[%clk 0:01:45.1]} 40. Qxf3 {[%clk
0:00:20.2]} 40... Bxa1 {[%clk 0:01:45.8]} 41. exf5 {[%clk 0:00:14.9]} 41... Rxe3
{[%clk 0:01:45.1]} 0-1

[Event "*** Titled Tuesday Blitz"]
[Site "Chess.com"]
[Date "2018.01.02"]
[Round "1"]
[White "OparinGrigoriy"]
[Black "TheNomNomFactor"]
[Result "1/2-1/2"]
[WhiteElo "2727"]
[BlackElo "2409"]
[TimeControl "180+2"]
[EndTime "13:07:30 PST"]
[Termination "Game drawn by repetition"]

1. e4 {[%clk 0:03:01.9]} 1... e5 {[%clk 0:03:00.1]} 2. Nf3 {[%clk 0:03:03]} 2...
Nc6 {[%clk 0:02:59.5]} 3. Bc4 {[%clk 0:03:04.1]} 3... Bc5 {[%clk 0:02:55.8]} 4.
c3 {[%clk 0:03:05.4]} 4... Nf6 {[%clk 0:02:56.8]} 5. d3 {[%clk 0:03:07]} 5... d6
{[%clk 0:02:58]} 6. O-O {[%clk 0:03:07.3]} 6... a6 {[%clk 0:02:58.8]} 7. a4
{[%clk 0:03:08.9]} 7... O-O {[%clk 0:02:53.2]} 8. Nbd2 {[%clk 0:03:09.4]} 8...
Ba7 {[%clk 0:02:52.1]} 9. h3 {[%clk 0:03:10.3]} 9... h6 {[%clk 0:02:46.4]} 10.
Re1 {[%clk 0:03:11]} 10... Re8 {[%clk 0:02:45.1]} 11. Qb3 {[%clk 0:02:56.6]}
11... Qe7 {[%clk 0:02:26.2]} 12. a5 {[%clk 0:02:57.7]} 12... b5 {[%clk 0:02:07]}
13. axb6 {[%clk 0:02:55.8]} 13... Bxb6 {[%clk 0:02:08.1]} 14. Qc2 {[%clk
0:02:45.9]} 14... Be6 {[%clk 0:02:05.4]} 15. Bxe6 {[%clk 0:02:45.7]} 15... Qxe6
{[%clk 0:02:07.3]} 16. Nc4 {[%clk 0:02:45.9]} 16... Bc5 {[%clk 0:02:08.2]} 17.
b4 {[%clk 0:02:44]} 17... Ba7 {[%clk 0:02:07.4]} 18. Be3 {[%clk 0:02:26.8]}
18... Bxe3 {[%clk 0:01:52.9]} 19. Rxe3 {[%clk 0:02:28.7]} 19... d5 {[%clk
0:01:38.3]} 20. exd5 {[%clk 0:02:25]} 20... Qxd5 {[%clk 0:01:40.2]} 21. Rae1
{[%clk 0:02:19.1]} 21... e4 {[%clk 0:01:41.3]} 22. Nd4 {[%clk 0:01:54.3]} 22...
Nxd4 {[%clk 0:01:32.1]} 23. cxd4 {[%clk 0:01:56.2]} 23... exd3 {[%clk 0:01:17]}
24. Rxe8+ {[%clk 0:01:50]} 24... Rxe8 {[%clk 0:01:16.8]} 25. Rxe8+ {[%clk
0:01:51.4]} 25... Nxe8 {[%clk 0:01:18.7]} 26. Qxd3 {[%clk 0:01:53.1]} 26... Qb5
{[%clk 0:01:12.6]} 27. Qc3 {[%clk 0:01:51.9]} 27... Nd6 {[%clk 0:01:09.1]} 28.
Ne5 {[%clk 0:01:44.5]} 28... Qb6 {[%clk 0:00:57.5]} 29. Qc5 {[%clk 0:01:40.6]}
29... Nb5 {[%clk 0:00:52.5]} 30. Qe7 {[%clk 0:01:19.5]} 30... Qe6 {[%clk
0:00:48.9]} 31. Qd8+ {[%clk 0:01:09.5]} 31... Kh7 {[%clk 0:00:49.4]} 32. Nd7
{[%clk 0:01:11.1]} 32... Qe1+ {[%clk 0:00:34.2]} 33. Kh2 {[%clk 0:01:12.5]}
33... Qxf2 {[%clk 0:00:35.8]} 34. Nf8+ {[%clk 0:01:04.7]} 34... Kg8 {[%clk
0:00:37]} 35. Ng6+ {[%clk 0:00:37.5]} 35... Kh7 {[%clk 0:00:37.2]} 36. Nf8+
{[%clk 0:00:39.4]} 36... Kg8 {[%clk 0:00:37.9]} 37. Ng6+ {[%clk 0:00:41.3]}
37... Kh7 {[%clk 0:00:39]} 38. Nf8+ {[%clk 0:00:43.2]} 1/2-1/2

[Event "*** Titled Tuesday Blitz"]
[Site "Chess.com"]
[Date "2018.01.02"]
[Round "1"]
[White "Jbd735"]
[Black "Maitreia"]
[Result "0-1"]
[WhiteElo "2282"]
[BlackElo "2569"]
[TimeControl "180+2"]
[EndTime "13:07:33 PST"]
[Termination "Maitreia won by resignation"]

1. e4 {[%clk 0:03:00.6]} 1... c5 {[%clk 0:02:57.6]} 2. Nf3 {[%clk 0:03:01.3]}
2... g6 {[%clk 0:02:58.4]} 3. c3 {[%clk 0:02:59]} 3... Nf6 {[%clk 0:02:58.7]} 4.
e5 {[%clk 0:02:57.2]} 4... Nd5 {[%clk 0:03:00]} 5. Bc4 {[%clk 0:02:57.9]} 5...
Nb6 {[%clk 0:03:00.4]} 6. Bb3 {[%clk 0:02:58.7]} 6... c4 {[%clk 0:03:00.8]} 7.
Bc2 {[%clk 0:02:58.9]} 7... Nc6 {[%clk 0:03:00.7]} 8. d4 {[%clk 0:02:57.3]} 8...
cxd3 {[%clk 0:03:01.6]} 9. Bxd3 {[%clk 0:02:57.7]} 9... Bg7 {[%clk 0:03:02.7]}
10. Qe2 {[%clk 0:02:58.3]} 10... d6 {[%clk 0:02:51.1]} 11. exd6 {[%clk 0:02:50]}
11... Qxd6 {[%clk 0:02:53]} 12. Nbd2 {[%clk 0:02:45.2]} 12... O-O {[%clk
0:02:52.8]} 13. Ne4 {[%clk 0:02:44]} 13... Qc7 {[%clk 0:02:50.8]} 14. O-O {[%clk
0:02:38.1]} 14... h6 {[%clk 0:02:50]} 15. Nc5 {[%clk 0:02:07.3]} 15... e5 {[%clk
0:02:45]} 16. b4 {[%clk 0:01:36.8]} 16... Kh7 {[%clk 0:02:37.5]} 17. Bd2 {[%clk
0:01:26.5]} 17... f5 {[%clk 0:02:37.8]} 18. Bb5 {[%clk 0:01:06.4]} 18... e4
{[%clk 0:02:37.3]} 19. Bxc6 {[%clk 0:01:07.2]} 19... bxc6 {[%clk 0:02:29.2]} 20.
Nd4 {[%clk 0:01:07.8]} 20... Qe5 {[%clk 0:02:21.3]} 21. Nxc6 {[%clk 0:00:57.8]}
21... Qf6 {[%clk 0:02:22.2]} 22. Nd4 {[%clk 0:00:56.5]} 22... Nd5 {[%clk
0:02:19.5]} 23. f3 {[%clk 0:00:42.1]} 23... e3 {[%clk 0:02:15.3]} 24. Be1 {[%clk
0:00:37.7]} 24... a5 {[%clk 0:02:10.4]} 25. Rd1 {[%clk 0:00:35.3]} 25... axb4
{[%clk 0:02:10.5]} 26. cxb4 {[%clk 0:00:37.2]} 26... Re8 {[%clk 0:02:01.2]} 27.
Qc4 {[%clk 0:00:29.8]} 27... Nf4 {[%clk 0:01:57.8]} 28. Bc3 {[%clk 0:00:26.2]}
28... e2 {[%clk 0:01:55.7]} 29. Nxe2 {[%clk 0:00:26.1]} 29... Nxe2+ {[%clk
0:01:57.6]} 30. Qxe2 {[%clk 0:00:26.8]} 30... Rxe2 {[%clk 0:01:59.5]} 31. Bxf6
{[%clk 0:00:26.5]} 31... Bxf6 {[%clk 0:02:01.4]} 32. a4 {[%clk 0:00:24.3]} 32...
Be7 {[%clk 0:01:51.8]} 33. Rfe1 {[%clk 0:00:20.8]} 33... Rxe1+ {[%clk
0:01:52.7]} 34. Rxe1 {[%clk 0:00:22.7]} 34... Bxc5+ {[%clk 0:01:53.9]} 35. bxc5
{[%clk 0:00:23.9]} 35... Kg7 {[%clk 0:01:51.4]} 36. Re7+ {[%clk 0:00:22.9]}
36... Kf6 {[%clk 0:01:51.8]} 37. Re8 {[%clk 0:00:22.7]} 37... Bb7 {[%clk
0:01:52.6]} 38. Rxa8 {[%clk 0:00:21]} 38... Bxa8 {[%clk 0:01:54.5]} 39. Kf2
{[%clk 0:00:19.4]} 39... Ke5 {[%clk 0:01:55.7]} 40. g4 {[%clk 0:00:17.5]} 40...
f4 {[%clk 0:01:55.1]} 41. a5 {[%clk 0:00:17.1]} 41... Kd5 {[%clk 0:01:55.6]} 42.
h4 {[%clk 0:00:16.5]} 42... Kxc5 {[%clk 0:01:49.2]} 43. g5 {[%clk 0:00:17.1]}
43... hxg5 {[%clk 0:01:46.9]} 44. hxg5 {[%clk 0:00:19]} 44... Kb5 {[%clk
0:01:48.6]} 45. Kg2 {[%clk 0:00:18.1]} 45... Kxa5 {[%clk 0:01:49.4]} 46. Kh3
{[%clk 0:00:18.5]} 46... Bxf3 {[%clk 0:01:48.7]} 47. Kh4 {[%clk 0:00:19.4]}
47... Bh5 {[%clk 0:01:49.6]} 48. Kh3 {[%clk 0:00:20.1]} 48... f3 {[%clk
0:01:51.5]} 49. Kg3 {[%clk 0:00:21.4]} 49... Kb4 {[%clk 0:01:53.4]} 0-1

[Event "*** Titled Tuesday Blitz"]
[Site "Chess.com"]
[Date "2018.01.02"]
[Round "1"]
[White "eldur16"]
[Black "PenguinPacks"]
[Result "1-0"]
[WhiteElo "2489"]
[BlackElo "2186"]
[TimeControl "180+2"]
[EndTime "13:07:37 PST"]
[Termination "eldur16 won by resignation"]

1. e4 {[%clk 0:03:01.9]} 1... c5 {[%clk 0:02:59.5]} 2. Nf3 {[%clk 0:03:02.5]}
2... e6 {[%clk 0:03:01]} 3. b3 {[%clk 0:03:03.1]} 3... Nc6 {[%clk 0:02:59.6]} 4.
Bb2 {[%clk 0:03:04.1]} 4... Nf6 {[%clk 0:03:00.2]} 5. Nc3 {[%clk 0:03:04.6]}
5... d5 {[%clk 0:03:00.4]} 6. exd5 {[%clk 0:03:04.9]} 6... exd5 {[%clk
0:03:02.3]} 7. d4 {[%clk 0:03:01]} 7... cxd4 {[%clk 0:02:51.1]} 8. Nxd4 {[%clk
0:03:00.6]} 8... Bc5 {[%clk 0:02:50.4]} 9. Bb5 {[%clk 0:02:57.7]} 9... O-O
{[%clk 0:02:43.7]} 10. Bxc6 {[%clk 0:02:57.4]} 10... bxc6 {[%clk 0:02:42.1]} 11.
O-O {[%clk 0:02:58.2]} 11... Qc7 {[%clk 0:02:27.6]} 12. Na4 {[%clk 0:02:55.6]}
12... Bd6 {[%clk 0:02:10]} 13. h3 {[%clk 0:02:56.1]} 13... Be5 {[%clk 0:02:09]}
14. Re1 {[%clk 0:02:54.6]} 14... Re8 {[%clk 0:02:08.4]} 15. Qf3 {[%clk
0:02:47.1]} 15... Bd7 {[%clk 0:02:08]} 16. Nc5 {[%clk 0:02:45.6]} 16... Qd6
{[%clk 0:01:59.8]} 17. Nd3 {[%clk 0:02:39.5]} 17... Ne4 {[%clk 0:01:25.9]} 18.
Rad1 {[%clk 0:02:29.6]} 18... Bf6 {[%clk 0:01:24.5]} 19. b4 {[%clk 0:02:15]}
19... a5 {[%clk 0:01:14]} 20. a3 {[%clk 0:02:13.2]} 20... axb4 {[%clk
0:01:06.2]} 21. axb4 {[%clk 0:02:13.6]} 21... Ra2 {[%clk 0:00:55.1]} 22. c4
{[%clk 0:01:31.1]} 22... Rxb2 {[%clk 0:00:47.5]} 23. Nxb2 {[%clk 0:01:30.3]}
23... Qxb4 {[%clk 0:00:48.4]} 24. cxd5 {[%clk 0:01:12.1]} 24... Bxd4 {[%clk
0:00:35.2]} 25. Nd3 {[%clk 0:01:09.5]} 25... Qe7 {[%clk 0:00:36.1]} 26. dxc6
{[%clk 0:00:59.7]} 26... Bxc6 {[%clk 0:00:38]} 27. Rc1 {[%clk 0:00:56.3]} 27...
Ba8 {[%clk 0:00:38.3]} 28. Qg4 {[%clk 0:00:53.2]} 28... Qf6 {[%clk 0:00:27]} 29.
Rc8 {[%clk 0:00:47.9]} 29... Bxf2+ {[%clk 0:00:12.1]} 30. Nxf2 {[%clk 0:00:48]}
30... Qxf2+ {[%clk 0:00:12.8]} 31. Kh2 {[%clk 0:00:49.1]} 31... Bc6 {[%clk
0:00:12.5]} 32. Rxe8+ {[%clk 0:00:47.3]} 32... Bxe8 {[%clk 0:00:13.8]} 33. Qxe4
{[%clk 0:00:48]} 1-0

[Event "*** Titled Tuesday Blitz"]
[Site "Chess.com"]
[Date "2018.01.02"]
[Round "1"]
[White "Adham_Fawzy"]
[Black "BillieKimbah"]
[Result "0-1"]
[WhiteElo "2382"]
[BlackElo "2696"]
[TimeControl "180+2"]
[EndTime "13:07:42 PST"]
[Termination "BillieKimbah won by resignation"]

1. e4 {[%clk 0:03:01.1]} 1... e5 {[%clk 0:02:59.1]} 2. Nf3 {[%clk 0:02:59.8]}
2... Nc6 {[%clk 0:02:59.8]} 3. Bb5 {[%clk 0:03:01.3]} 3... a6 {[%clk 0:02:59.5]}
4. Bxc6 {[%clk 0:03:00.8]} 4... dxc6 {[%clk 0:03:00.2]} 5. O-O {[%clk
0:02:53.6]} 5... Bd6 {[%clk 0:03:00.4]} 6. d4 {[%clk 0:02:26]} 6... exd4 {[%clk
0:03:01.2]} 7. Qxd4 {[%clk 0:02:23.9]} 7... f6 {[%clk 0:03:02]} 8. e5 {[%clk
0:02:06.2]} 8... fxe5 {[%clk 0:03:01.3]} 9. Nxe5 {[%clk 0:02:05.6]} 9... Ne7
{[%clk 0:03:00.2]} 10. Bg5 {[%clk 0:02:02.8]} 10... Be6 {[%clk 0:01:16.7]} 11.
Qe3 {[%clk 0:01:26]} 11... Nf5 {[%clk 0:01:05.2]} 12. Qf4 {[%clk 0:01:11.9]}
12... Qc8 {[%clk 0:00:56.7]} 13. Nd2 {[%clk 0:01:00.3]} 13... h6 {[%clk
0:00:56]} 14. Ne4 {[%clk 0:00:41.7]} 14... hxg5 {[%clk 0:00:53.8]} 15. Nxg5
{[%clk 0:00:43.6]} 15... Rh4 {[%clk 0:00:46.1]} 16. Qd2 {[%clk 0:00:25]} 16...
Bxe5 {[%clk 0:00:45.2]} 17. Nf3 {[%clk 0:00:26.2]} 17... Bf4 {[%clk 0:00:40.6]}
18. Qd3 {[%clk 0:00:26.8]} 18... Rh6 {[%clk 0:00:40.9]} 19. g3 {[%clk
0:00:27.8]} 19... Bd6 {[%clk 0:00:41.3]} 20. Rfe1 {[%clk 0:00:29]} 20... Ne7
{[%clk 0:00:38.9]} 21. Ng5 {[%clk 0:00:27.7]} 21... Qd7 {[%clk 0:00:39.8]} 22.
Qe3 {[%clk 0:00:21]} 22... Bf5 {[%clk 0:00:37.2]} 23. Rad1 {[%clk 0:00:21.9]}
23... b6 {[%clk 0:00:37.2]} 24. c4 {[%clk 0:00:22.6]} 24... c5 {[%clk
0:00:37.5]} 25. b4 {[%clk 0:00:23.4]} 25... O-O-O {[%clk 0:00:35.6]} 26. Qf3
{[%clk 0:00:20.2]} 26... Qc6 {[%clk 0:00:33.6]} 27. Qe2 {[%clk 0:00:17.6]} 27...
Rxh2 {[%clk 0:00:32.4]} 28. Ne4 {[%clk 0:00:14.7]} 28... Rdh8 {[%clk 0:00:31]}
29. Qf3 {[%clk 0:00:13.2]} 29... Rh1+ {[%clk 0:00:30.4]} 0-1